fUST/lending_fUST_20240711
["ID","MTS","AMOUNT","RATE_DAILY","PERIOD"]
[331697286,1720656643146,-151.0,0.0003315,7]
[331697288,1720656643155,-500.0,0.0003315,7]
[331697290,1720656643165,-500.0,0.0003315,7]
[331697292,1720656643174,-4234.97,0.0003315,7]
[331697294,1720656643183,-500.0,0.0003315,7]
[331697296,1720656643192,-500.0,0.0003315,7]
[331697298,1720656643201,-604.53,0.0003315,7]
[331697301,1720656643211,-500.0,0.0003315,7]
[331697304,1720656643219,-35.37181093,0.0003315,7]
[331697316,1720656643371,-464.62818907,0.0003315,7]
[331697317,1720656643381,-626.18,0.0003315,7]
[331697318,1720656643398,-895.8,0.0003315,7]
[331697319,1720656643411,-500.0,0.0003315,7]
[331697320,1720656643421,-1211.56,0.0003315,7]
[331697321,1720656643430,-590.31,0.0003315,7]
[331697322,1720656643440,-715.28,0.0003315,7]
[331697323,1720656643450,-500.0,0.0003315,7]
[331697324,1720656643461,-170.930027,0.0003315,7]
[331697325,1720656643470,-170.930027,0.0003315,7]
[331697326,1720656643480,-500.0,0.0003315,7]
[331697327,1720656643490,-244.694622,0.0003315,7]
[331697328,1720656643500,-244.694622,0.0003315,7]
[331697329,1720656643509,-236.898733,0.0003315,7]
[331697330,1720656643520,-236.898733,0.0003315,7]
[331697331,1720656643529,-500.0,0.0003315,7]
[331697332,1720656643539,-151.0,0.0003315,7]
[331697333,1720656643549,-500.0,0.0003315,7]
[331697334,1720656643559,-318.94156302,0.0003315,7]
[331697335,1720656643569,-200.0,0.0003315,7]
[331697336,1720656643580,-151.0,0.0003315,7]
[331697337,1720656643590,-3120.7,0.0003315,7]
[331697338,1720656643599,-483.34975391,0.0003315,7]
[331697339,1720656643609,-1720.38,0.0003315,7]
[331697340,1720656643619,-500.0,0.0003315,7]
[331697341,1720656643629,-518.245049,0.0003315,7]
[331697342,1720656643639,-533.42,0.0003315,7]
[331697343,1720656643648,-518.245049,0.0003315,7]
[331697344,1720656643657,-242.181083,0.0003315,7]
[331697345,1720656643667,-500.0,0.0003315,7]
[331697346,1720656643676,-242.181083,0.0003315,7]
[331697347,1720656643686,-500.0,0.0003315,7]
[331697348,1720656643696,-500.0,0.0003315,7]
[331697349,1720656643705,-500.0,0.0003315,7]
[331697350,1720656643714,-500.0,0.0003315,7]
[331697351,1720656643724,-151.0,0.0003315,7]
[331697352,1720656643735,-1573.55,0.0003315,7]
[331697353,1720656643745,-151.0,0.0003315,7]
[331697354,1720656643755,-151.0,0.0003315,7]
[331697355,1720656643765,-741.34,0.0003315,7]
[331697356,1720656643774,-463.12716053,0.0003315,7]
[331697357,1720656643783,-500.0,0.0003315,7]
[331697358,1720656643793,-522.21,0.0003315,7]
[331697359,1720656643802,-2948.35,0.0003315,7]
[331697360,1720656643812,-609.5236,0.0003315,7]
[331697361,1720656643821,-609.5236,0.0003315,7]
[331697362,1720656643831,-268.844495,0.0003315,7]
[331697363,1720656643840,-268.844495,0.0003315,7]
[331697364,1720656643850,-500.0,0.0003315,7]
[331697365,1720656643859,-605.99,0.0003315,7]
[331697366,1720656643869,-7239.61,0.0003315,7]
[331697367,1720656643879,-505.06,0.0003315,7]
[331697368,1720656643888,-541.49,0.0003315,7]
[331697369,1720656643898,-500.0,0.0003315,7]
[331697370,1720656643907,-151.0,0.0003315,7]
[331697371,1720656643916,-503.13,0.0003315,7]
[331697372,1720656643926,-500.0,0.0003315,2]
[331697373,1720656643936,-157.64606829,0.00033196,7]
[331697374,1720656643946,-306.208099,0.000332,16]
[331697375,1720656643955,-158.11193092,0.0003323,7]
[331697376,1720656643965,-500.0,0.00033246,120]
[331697377,1720656643974,-151.0,0.00033267,5]
[331697378,1720656643985,-438.742173,0.00033295,2]
[331697379,1720656643994,-168.0,0.00033301,2]
[331697380,1720656644003,-43888.37029548,0.00033333,2]
[331697381,1720656644013,-150.0,0.00033337,2]
[331697382,1720656644022,-158.06860831,0.00033382,7]
[331697383,1720656644031,-1444.73,0.00033424,4]
[331697384,1720656644041,-500.0,0.00033424,7]
[331697385,1720656644050,-500.0,0.00033424,7]
[331697386,1720656644060,-500.0,0.00033424,7]
[331697387,1720656644071,-500.0,0.00033424,7]
[331697388,1720656644081,-500.0,0.00033424,7]
[331697389,1720656644091,-500.0,0.00033424,7]
[331697390,1720656644102,-500.0,0.00033424,7]
[331697391,1720656644111,-500.0,0.00033424,7]
[331697392,1720656644121,-403.29403962,0.00033424,7]
[331697393,1720656644130,-611.33,0.00033424,7]
[331697394,1720656644140,-590.33,0.00033424,7]
[331697395,1720656644149,-500.0,0.00033424,7]
[331697396,1720656644158,-500.0,0.00033424,7]
[331697397,1720656644167,-500.0,0.00033424,7]
[331697398,1720656644177,-500.0,0.00033424,7]
[331697399,1720656644187,-500.0,0.00033424,7]
[331697400,1720656644196,-500.0,0.00033424,7]
[331697401,1720656644207,-410.47907204,0.00033424,7]
[331697402,1720656644217,-500.0,0.00033424,7]
[331697403,1720656644227,-500.0,0.00033424,7]
[331697404,1720656644238,-500.0,0.00033424,7]
[331697405,1720656644251,-749.55,0.00033424,7]
[331697406,1720656644260,-906.17,0.00033424,7]
[331697407,1720656644271,-500.0,0.00033424,7]
[331697408,1720656644280,-1774.55,0.00033424,7]
[331697409,1720656644289,-1500.0,0.00033424,7]
[331697410,1720656644300,-998.71,0.00033424,7]
[331697411,1720656644310,-500.0,0.00033424,7]
[331697412,1720656644320,-1127.87,0.00033424,7]
[331697413,1720656644330,-672.73,0.00033424,7]
[331697414,1720656644340,-500.0,0.00033424,7]
[331697415,1720656644351,-500.0,0.00033424,7]
[331697416,1720656644361,-4234.97,0.00033424,7]
[331697417,1720656644373,-500.0,0.00033424,7]
[331697418,1720656644382,-500.0,0.00033424,7]
[331697419,1720656644392,-604.53,0.00033424,7]
[331697420,1720656644402,-500.0,0.00033424,7]
[331697421,1720656644411,-500.0,0.00033424,7]
[331697422,1720656644422,-626.18,0.00033424,7]
[331697423,1720656644432,-895.8,0.00033424,7]
[331697424,1720656644442,-500.0,0.00033424,7]
[331697425,1720656644452,-1211.56,0.00033424,7]
[331697426,1720656644462,-590.31,0.00033424,7]
[331697427,1720656644471,-715.28,0.00033424,7]
[331697428,1720656644481,-595.21901463,0.00033424,7]
[331697429,1720656644491,-170.930027,0.00033424,7]
[331697430,1720656644501,-170.930027,0.00033424,7]
[331697431,1720656644510,-500.0,0.00033424,7]
[331697432,1720656644521,-244.694622,0.00033424,7]
[331697433,1720656644530,-244.694622,0.00033424,7]
[331697434,1720656644540,-236.898733,0.00033424,7]
[331697435,1720656644550,-236.898733,0.00033424,7]
[331697436,1720656644560,-500.0,0.00033424,7]
[331697437,1720656644569,-239.63397,0.00033424,7]
[331697438,1720656644579,-500.0,0.00033424,7]
[331697439,1720656644589,-151.0,0.00033424,7]
[331697440,1720656644599,-3120.7,0.00033424,7]
[331697441,1720656644610,-1720.38,0.00033424,7]
[331697442,1720656644620,-500.0,0.00033424,7]
[331697443,1720656644630,-518.245049,0.00033424,7]
[331697444,1720656644640,-533.42,0.00033424,7]
[331697445,1720656644650,-77.76460129,0.00033424,7]
[331697446,1720656644671,-440.48044771,0.00033424,7]
[331697447,1720656644681,-242.181083,0.00033424,7]
[331697448,1720656644690,-342.73339091,0.00033424,7]
[331697449,1720656644731,-157.26660909,0.00033424,7]
[331697450,1720656644741,-242.181083,0.00033424,7]
[331697451,1720656644751,-500.0,0.00033424,7]
[331697452,1720656644761,-500.0,0.00033424,7]
[331697453,1720656644770,-500.0,0.00033424,7]
[331697454,1720656644779,-151.0,0.00033424,7]
[331697455,1720656644789,-1573.55,0.00033424,7]
[331697456,1720656644798,-151.0,0.00033424,7]
[331697457,1720656644807,-151.0,0.00033424,7]
[331697458,1720656644816,-741.34,0.00033424,7]
[331697459,1720656644826,-360.01,0.00033424,7]
[331697460,1720656644835,-522.21,0.00033424,7]
[331697461,1720656644845,-1081.61080628,0.00033424,7]
[331697462,1720656645101,-1866.73919372,0.00033424,7]
[331697463,1720656645110,-519.33555484,0.00033424,7]
[331697464,1720656645122,-90.18804516,0.00033424,7]
[331697465,1720656645131,-268.844495,0.00033424,7]
[331697466,1720656645140,-609.5236,0.00033424,7]
[331697467,1720656645151,-268.844495,0.00033424,7]
[331697468,1720656645159,-500.0,0.00033424,7]
[331697469,1720656645168,-605.99,0.00033424,7]
[331697470,1720656645178,-4424.28242723,0.00033424,7]
[331697551,1720656646359,-153.0,0.00028706,2]
[331697553,1720656646369,-308.51871438,0.00029813,2]
[331697555,1720656646379,-4799.3,0.00033414,3]
[331697557,1720656646388,-2815.32757277,0.00033424,7]
[331697558,1720656646398,-505.06,0.00033424,7]
[331697559,1720656646407,-541.49,0.00033424,7]
[331697560,1720656646417,-500.0,0.00033424,7]
[331697561,1720656646427,-151.0,0.00033424,7]
[331697562,1720656646437,-503.13,0.00033424,7]
[331697563,1720656646447,-500.0,0.00033424,2]
[331697564,1720656646456,-257.49322437,0.00033442,2]
[331697565,1720656646466,-158.06860831,0.00033449,7]
[331697566,1720656646476,-154.5944506,0.00033496,7]
[331697567,1720656646488,-1225.84401082,0.000335,5]
[331697568,1720656646501,-478.28988562,0.000335,5]
[331697591,1720657363855,2422.80787231,0.00016255,2]
[331697593,1720657396002,154.62117811,0.00016255,2]
[331697594,1720657400073,166.57170729,0.00016255,2]
[331697596,1720657445274,287.42129962,0.00016255,2]
[331697598,1720657470016,2897.30548455,0.00016255,2]
[331697600,1720657499005,154.62117811,0.00016255,2]
[331697601,1720657508556,1682.12368581,0.00016255,2]
[331697605,1720657548602,777.60346913,0.00016255,2]
[331697606,1720657555253,574.1884159,0.00016255,2]
[331697607,1720657560468,154.62117811,0.00016255,2]
[331697608,1720657577877,838.68360444,0.00016255,2]
[331697609,1720657578339,1088.12737644,0.00016255,2]
[331697610,1720657582119,1331.26692214,0.00016255,2]
[331697611,1720657585019,244.82208369,0.00016255,2]
[331697612,1720657588066,425.21056461,0.00016255,2]
[331697613,1720657588195,1055.47074907,0.00016255,2]
[331697614,1720657588883,397.62940615,0.00016255,2]
[331697615,1720657589466,160.0,0.00016255,2]
[331697616,1720657589495,208.04822449,0.00016255,2]
[331697619,1720657593439,155.0127999,0.00016255,2]
[331697620,1720657594706,155.25580085,0.00016255,2]
[331697621,1720657597477,160.0,0.00016255,2]
[331697622,1720657603001,602.8456369,0.00016255,2]
[331697623,1720657609232,155.4929128,0.00016255,2]
[331697624,1720657615674,390.61371959,0.00016255,2]
[331697625,1720657630924,195.39444739,0.00016255,2]
[331697626,1720657637138,171.32771551,0.00016255,2]
[331697627,1720657637167,-154.66746495,0.00018899,2]
[331697628,1720657637186,-236.57048443,0.00019165,2]
[331697629,1720657637205,-237.90351153,0.00019165,2]
[331697630,1720657637224,-300.0,0.00019702,2]
[331697631,1720657637244,-414.51901965,0.00019703,2]
[331697632,1720657637263,-10.00570822,0.00019703,2]
[331697633,1720657643116,-202.89614878,0.00019164,2]
[331697637,1720657745110,-492.55302453,0.00018899,2]
[331697638,1720657745132,-154.62117811,0.00018899,2]
[331697639,1720657745152,-154.74467129,0.00019165,2]
[331697640,1720657745171,-154.62117811,0.00019165,2]
[331697641,1720657745191,-302.92541985,0.0002,2]
[331697642,1720657745210,-972.22597955,0.00020996,2]
[331697643,1720657745231,-24900.0,0.00021012,2]
[331697644,1720657745251,-190.359545,0.00021096,2]
[331697645,1720657745271,-394.867955,0.00021096,2]
[331697646,1720657745290,-163.172918,0.00021331,2]
[331697647,1720657745310,-250.0,0.0002135,2]
[331697648,1720657745329,-156.37674716,0.00021917,2]
[331697649,1720657745349,-165.92052,0.00021918,2]
[331697650,1720657745369,-165.92052,0.00022559,2]
[331697651,1720657745389,-10565.85167843,0.00022941,2]
[331697652,1720657745409,-563.45459648,0.00022942,2]
[331697653,1720657745428,-208.00349547,0.00022943,2]
[331697655,1720657753531,32.41302867,0.00022943,2]
[331697656,1720657758125,-154.62117811,0.00019165,2]
[331697657,1720657758149,-145.37882189,0.00022943,2]
[331697658,1720657760103,-87.15536958,0.00022943,2]
[331697659,1720657760124,-165.92052,0.000232,2]
[331697660,1720657760147,-72.12359859,0.00023229,2]
[331697708,1720657832285,-574.29384894,0.00020841,2]
[331697711,1720657832298,-44.60239603,0.00022943,2]
[331697713,1720657832313,-146.64721973,0.00022943,2]
[331697715,1720657832324,-250.0,0.00022982,2]
[331697718,1720657832334,-620.00006197,0.00023568,2]
[331697720,1720657832343,-191.0565944,0.00023583,2]
[331697722,1720657832354,-162.004425,0.00023668,2]
[331697724,1720657832364,-972.22597951,0.00023796,2]
[331697726,1720657832375,-165.92052,0.00023841,2]
[331697728,1720657832387,-165.92052,0.00024482,2]
[331697730,1720657832398,-620.0000031,0.00024746,2]
[331697733,1720657832410,-19686.40137813,0.00025,4]
[331697982,1720657838165,-12372.87199178,0.00025,4]
[331697983,1720657838174,-229.22032487,0.00025147,2]
[331697984,1720657838183,-819.26,0.00025481,3]
[331697985,1720657838193,-1928.73,0.00025481,3]
[331697986,1720657838203,-3677.96,0.00025481,3]
[331697987,1720657838212,-3064.97,0.00025481,3]
[331697988,1720657838222,-105698.19658535,0.00025491,3]
[331697989,1720657838234,-36961.05178265,0.00025491,3]
[331697990,1720657838243,-192.39470163,0.000255,2]
[331697991,1720657838252,-500.0,0.000255,2]
[331697992,1720657838261,-500.0,0.000255,2]
[331697993,1720657838272,-500.0,0.000255,2]
[331697994,1720657838282,-282.06803579,0.000255,2]
[331697995,1720657838291,-500.0,0.000255,2]
[331697996,1720657838301,-379.09465048,0.000255,2]
[331697997,1720657838311,-6122.50524325,0.00025501,5]
[331697998,1720657838320,-30000.0,0.00025501,2]
[331697999,1720657838329,-52142.01242753,0.00025501,2]
[331698000,1720657838339,-13699.21225726,0.00025759,2]
[331698001,1720657838349,-574.29384894,0.00025841,2]
[331698002,1720657838358,-972.22597951,0.00026597,2]
[331698003,1720657838368,-150.5,0.00026626,62]
[331698004,1720657838377,-13699.21225724,0.00026636,2]
[331698005,1720657838387,-2000.0,0.00027177,2]
[331698006,1720657838398,-71329.6241839,0.00027185,3]
[331698007,1720657838407,-394.867955,0.00027195,2]
[331698008,1720657838417,-202.14376802,0.00027367,2]
[331698009,1720657838427,-71329.6241839,0.00027387,3]
[331698010,1720657838436,-500.0,0.00027397,2]
[331698011,1720657838448,-500.0,0.00027397,2]
[331698012,1720657838457,-500.0,0.00027397,2]
[331698013,1720657838467,-500.0,0.00027397,2]
[331698014,1720657838476,-500.0,0.00027397,2]
[331698015,1720657838485,-228.64546296,0.00027397,2]
[331698016,1720657838498,-271.35453704,0.00027397,2]
[331698017,1720657838507,-500.0,0.00027397,2]
[331698018,1720657838516,-500.0,0.00027397,2]
[331698019,1720657838526,-500.0,0.00027397,2]
[331698020,1720657838536,-500.0,0.00027397,2]
[331698021,1720657838545,-500.0,0.00027397,2]
[331698022,1720657838554,-500.0,0.00027397,2]
[331698023,1720657838564,-500.0,0.00027397,2]
[331698024,1720657838573,-500.0,0.00027397,2]
[331698025,1720657838583,-500.0,0.00027397,2]
[331698026,1720657838593,-500.0,0.00027397,2]
[331698027,1720657838604,-500.0,0.00027397,2]
[331698028,1720657838614,-198.88431547,0.00027397,2]
[331698029,1720657838623,-500.0,0.00027397,2]
[331698030,1720657838633,-500.0,0.00027397,2]
[331698031,1720657838643,-500.0,0.00027397,2]
[331698032,1720657838652,-500.0,0.00027397,2]
[331698033,1720657838662,-500.0,0.00027397,2]
[331698034,1720657838672,-500.0,0.00027397,2]
[331698035,1720657838681,-500.0,0.00027397,2]
[331698036,1720657838690,-500.0,0.00027397,2]
[331698037,1720657838702,-500.0,0.00027397,2]
[331698038,1720657838712,-500.0,0.00027397,2]
[331698039,1720657838722,-500.0,0.00027397,2]
[331698040,1720657838731,-500.0,0.00027397,2]
[331698041,1720657838742,-500.0,0.00027397,2]
[331698042,1720657838752,-500.0,0.00027397,2]
[331698043,1720657838762,-500.0,0.00027397,2]
[331698044,1720657838772,-500.0,0.00027397,2]
[331698045,1720657838781,-500.0,0.00027397,2]
[331698046,1720657838791,-500.0,0.00027397,2]
[331698047,1720657838801,-500.0,0.00027397,2]
[331698048,1720657838811,-500.0,0.00027397,2]
[331698049,1720657838821,-500.0,0.00027397,2]
[331698050,1720657838831,-500.0,0.00027397,2]
[331698051,1720657838840,-500.0,0.00027397,2]
[331698052,1720657838850,-500.0,0.00027397,2]
[331698053,1720657838859,-500.0,0.00027397,2]
[331698054,1720657838870,-500.0,0.00027397,2]
[331698055,1720657838879,-500.0,0.00027397,2]
[331698056,1720657838888,-500.0,0.00027397,2]
[331698057,1720657838898,-500.0,0.00027397,2]
[331698058,1720657838908,-500.0,0.00027397,2]
[331698059,1720657838917,-500.0,0.00027397,2]
[331698060,1720657838927,-500.0,0.00027397,2]
[331698061,1720657838936,-500.0,0.00027397,2]
[331698062,1720657838946,-500.0,0.00027397,2]
[331698063,1720657838957,-500.0,0.00027397,2]
[331698064,1720657838966,-500.0,0.00027397,2]
[331698065,1720657838976,-500.0,0.00027397,2]
[331698066,1720657838986,-500.0,0.00027397,2]
[331698067,1720657838995,-500.0,0.00027397,2]
[331698068,1720657839011,-500.0,0.00027397,2]
[331698069,1720657839021,-500.0,0.00027397,2]
[331698070,1720657839031,-500.0,0.00027397,2]
[331698071,1720657839040,-500.0,0.00027397,2]
[331698072,1720657839050,-500.0,0.00027397,2]
[331698073,1720657839060,-500.0,0.00027397,2]
[331698074,1720657839070,-500.0,0.00027397,2]
[331698075,1720657839080,-500.0,0.00027397,2]
[331698076,1720657839090,-500.0,0.00027397,2]
[331698077,1720657839100,-500.0,0.00027397,2]
[331698078,1720657839109,-500.0,0.00027397,2]
[331698079,1720657839119,-500.0,0.00027397,2]
[331698080,1720657839128,-500.0,0.00027397,2]
[331698081,1720657839138,-500.0,0.00027397,2]
[331698082,1720657839148,-500.0,0.00027397,2]
[331698083,1720657839158,-500.0,0.00027397,2]
[331698084,1720657839168,-500.0,0.00027397,2]
[331698085,1720657839177,-500.0,0.00027397,2]
[331698086,1720657839187,-500.0,0.00027397,2]
[331698087,1720657839199,-572.81896294,0.00027397,2]
[331698088,1720657839209,-1285.97855607,0.00027397,2]
[331698089,1720657839218,-1285.97855607,0.00027397,2]
[331698090,1720657839228,-1285.97855607,0.00027397,2]
[331698091,1720657839237,-1285.97855607,0.00027397,2]
[331698092,1720657839246,-1285.97855607,0.00027397,2]
[331698093,1720657839257,-1285.97855607,0.00027397,2]
[331698094,1720657839267,-1285.97855607,0.00027397,2]
[331698095,1720657839277,-1285.97855607,0.00027397,2]
[331698096,1720657839287,-1285.97855607,0.00027397,2]
[331698097,1720657839297,-1285.97855607,0.00027397,2]
[331698098,1720657839307,-1285.97855607,0.00027397,2]
[331698099,1720657839317,-1285.97855607,0.00027397,2]
[331698100,1720657839327,-1285.97855607,0.00027397,2]
[331698101,1720657839338,-1285.97855607,0.00027397,2]
[331698102,1720657839348,-1285.97855607,0.00027397,2]
[331698103,1720657839359,-1285.97855607,0.00027397,2]
[331698104,1720657839371,-1285.97855607,0.00027397,2]
[331698105,1720657839381,-1285.97855607,0.00027397,2]
[331698106,1720657839391,-1285.97855607,0.00027397,2]
[331698107,1720657839401,-1285.97855607,0.00027397,2]
[331698108,1720657839411,-1285.97855607,0.00027397,2]
[331698109,1720657839422,-1285.97855607,0.00027397,2]
[331698110,1720657839433,-1285.97855607,0.00027397,2]
[331698111,1720657839444,-1285.97855607,0.00027397,2]
[331698112,1720657839462,-1285.97855607,0.00027397,2]
[331698113,1720657839471,-1285.97855607,0.00027397,2]
[331698114,1720657839481,-1285.97855607,0.00027397,2]
[331698115,1720657839491,-1285.97855607,0.00027397,2]
[331698116,1720657839500,-1285.97855607,0.00027397,2]
[331698117,1720657839510,-1285.97855607,0.00027397,2]
[331698118,1720657839520,-1285.97855598,0.00027397,2]
[331698119,1720657839530,-158.527152,0.00027397,120]
[331698120,1720657839540,-13699.21225724,0.00027514,2]
[331698121,1720657839550,-207.88675616,0.00027809,2]
[331698122,1720657839560,-377.81996093,0.00027809,2]
[331698123,1720657839571,-238.12381686,0.00027809,2]
[331698124,1720657839582,-202.59375792,0.00027809,2]
[331698125,1720657839592,-160.0,0.0002789,3]
[331698126,1720657839603,-524.02241824,0.00027999,2]
[331698127,1720657839613,-229.31696231,0.00028,30]
[331698128,1720657839624,-160.0,0.0002826,4]
[331698129,1720657839634,-173.14965076,0.0002838,2]
[331698130,1720657839645,-500.0,0.0002838,2]
[331698131,1720657839655,-500.0,0.0002838,2]
[331698132,1720657839664,-230.5509408,0.0002838,2]
[331698133,1720657839674,-500.0,0.0002838,2]
[331698134,1720657839684,-359.61992807,0.0002838,2]
[331698135,1720657839694,-500.0,0.0002838,2]
[331698136,1720657839710,-154.40893818,0.0002838,2]
[331698137,1720657839719,-500.0,0.0002838,2]
[331698138,1720657839729,-500.0,0.0002838,2]
[331698140,1720657839738,-500.0,0.0002838,2]
[331698141,1720657839748,-288.64343489,0.0002838,2]
[331698142,1720657839757,-500.0,0.0002838,2]
[331698143,1720657839767,-500.0,0.0002838,2]
[331698144,1720657839776,-500.0,0.0002838,2]
[331698145,1720657839786,-500.0,0.0002838,2]
[331698146,1720657839795,-500.0,0.0002838,2]
[331698147,1720657839804,-71329.6241839,0.00028381,3]
[331698148,1720657839813,-13699.21225724,0.00028391,2]
[331698149,1720657839823,-160.0,0.00028629,5]
[331698150,1720657839832,-160.0,0.00028998,6]
[331698151,1720657839845,-1000.0,0.00029,2]
[331698152,1720657839855,-13699.21225724,0.00029268,2]
[331698153,1720657839864,-151.0,0.00029332,7]
[331698154,1720657839875,-151.0,0.00029332,7]
[331698155,1720657839885,-219.256045,0.00029332,7]
[331698156,1720657839895,-88888.0,0.00029332,3]
[331698157,1720657839906,-160.0,0.00029368,7]
[331698159,1720657839915,-972.22597951,0.00029397,2]
[331698161,1720657839925,-160.0,0.00029737,8]
[331698162,1720657839935,-154.62117811,0.00029813,2]
[331698163,1720657839945,-155.43553926,0.0002987,2]
[331698164,1720657839957,-308.51871438,0.00029879,2]
[331698165,1720657839967,-306.31180165,0.00029903,2]
[331698166,1720657839977,-170.47875529,0.0003,4]
[331698167,1720657839986,-11239.65358693,0.0003,4]
[331698168,1720657839996,-309.10360033,0.0003,4]
[331698169,1720657840006,-262.0,0.0003,2]
[331698170,1720657840015,-160.0,0.00030106,9]
[331698171,1720657840025,-161.0,0.0003034,18]
[331698172,1720657840034,-160.0,0.00030476,10]
[331698173,1720657840044,-290.79810635,0.00030476,5]
[331698174,1720657840054,-3000.0,0.000306,4]
[331698175,1720657840066,-3000.0,0.0003061,4]
[331698176,1720657840076,-151.0,0.00030665,4]
[331698177,1720657840086,-5292.88975486,0.00030726,2]
[331698178,1720657840096,-366.6405652,0.00030732,2]
[331698179,1720657840106,-574.29384894,0.00030841,2]
[331698180,1720657840116,-151.0,0.00031185,4]
[331698181,1720657840125,-374.63942513,0.00031251,4]
[331698182,1720657840134,-620.0011804,0.00031306,2]
[331698183,1720657840144,-151.0,0.00031704,4]
[331698184,1720657840153,-150.0,0.00032056,2]
[331698185,1720657840163,-1406.0,0.00032056,2]
[331698186,1720657840172,-972.22597951,0.00032198,2]
[331698187,1720657840182,-323274.7821124,0.00032201,2]
[331698189,1720657840191,-151.0,0.00032201,7]
[331698191,1720657840202,-151.0,0.00032201,7]
[331698192,1720657840211,-151.0,0.00032201,7]
[331698194,1720657840221,-151.0,0.00032201,7]
[331698195,1720657840230,-151.0,0.00032201,7]
[331698196,1720657840240,-289.071525,0.00032201,7]
[331698198,1720657840249,-289.071525,0.00032201,7]
[331698199,1720657840258,-151.0,0.00032201,2]
[331698200,1720657840268,-151.0,0.00032201,7]
[331698201,1720657840278,-740.908329,0.00032201,7]
[331698202,1720657840287,-740.908329,0.00032201,7]
[331698203,1720657840297,-151.0,0.00032201,7]
[331698204,1720657840306,-284.376032,0.00032201,7]
[331698205,1720657840316,-284.376032,0.00032201,7]
[331698206,1720657840326,-184.55322,0.00032201,7]
[331698207,1720657840335,-184.55322,0.00032201,7]
[331698208,1720657840345,-151.0,0.00032201,7]
[331698209,1720657840354,-151.0,0.00032201,7]
[331698210,1720657840364,-891.011102,0.00032201,7]
[331698211,1720657840373,-151.0,0.00032201,7]
[331698212,1720657840383,-891.011102,0.00032201,7]
[331698213,1720657840392,-151.0,0.00032201,7]
[331698214,1720657840401,-151.0,0.00032201,7]
[331698215,1720657840410,-353.337489,0.00032201,7]
[331698216,1720657840419,-353.337489,0.00032201,7]
[331698217,1720657840429,-151.0,0.00032201,7]
[331698218,1720657840439,-328.987047,0.00032201,7]
[331698219,1720657840450,-328.987047,0.00032201,7]
[331698220,1720657840459,-151.0,0.00032201,7]
[331698221,1720657840468,-151.0,0.00032201,7]
[331698222,1720657840477,-151.0,0.00032223,4]
[331698223,1720657840486,-151.0,0.00032742,5]
[331698224,1720657840495,-620.00005902,0.00032871,2]
[331698225,1720657840505,-603.889205,0.00032876,7]
[331698226,1720657840514,-500.0,0.00032876,7]
[331698227,1720657840523,-500.0,0.00032876,7]
[331698228,1720657840533,-500.0,0.00032876,7]
[331698229,1720657840542,-500.0,0.00032876,7]
[331698230,1720657840551,-500.0,0.00032876,7]
[331698231,1720657840561,-500.0,0.00032876,7]
[331698232,1720657840570,-500.0,0.00032876,7]
[331698233,1720657840579,-514.80124812,0.00032876,7]
[331698234,1720657840588,-503.17023512,0.00032876,7]
[331698235,1720657840597,-500.0,0.00032876,7]
[331698236,1720657840606,-500.0,0.00032876,7]
[331698237,1720657840615,-500.0,0.00032876,7]
[331698238,1720657840624,-500.0,0.00032876,7]
[331698239,1720657840634,-500.0,0.00032876,7]
[331698240,1720657840643,-500.0,0.00032876,7]